fUST/lending_fUST_20250320
["ID","MTS","AMOUNT","RATE_DAILY","PERIOD"]
[356447401,1742461872189,-500.0,0.00033424,21]
[356447402,1742461872198,-597.9,0.00033424,21]
[356447403,1742461872207,-2456.66,0.00033424,21]
[356447404,1742461872216,-275.55702581,0.00033424,21]
[356447405,1742461872225,-500.0,0.00033424,21]
[356447406,1742461872235,-1085.47,0.00033424,21]
[356447407,1742461872244,-500.0,0.00033424,21]
[356447408,1742461872253,-1445.83,0.00033424,21]
[356447409,1742461872263,-649.77,0.00033424,21]
[356447410,1742461872272,-1355.11,0.00033424,21]
[356447411,1742461872281,-1787.39,0.00033424,21]
[356447412,1742461872290,-500.0,0.00033424,21]
[356447413,1742461872300,-2452.84,0.00033424,21]
[356447414,1742461872309,-1890.01,0.00033424,21]
[356447415,1742461872318,-1817.26,0.00033424,21]
[356447416,1742461872328,-573.22650072,0.00033424,21]
[356447417,1742461872337,-1765.11,0.00033424,21]
[356447418,1742461872346,-500.0,0.00033424,21]
[356447419,1742461872355,-2034.71,0.00033424,21]
[356447420,1742461872365,-500.0,0.00033424,21]
[356447421,1742461872374,-500.0,0.00033424,21]
[356447422,1742461872384,-633.39,0.00033424,21]
[356447423,1742461872393,-500.0,0.00033424,21]
[356447424,1742461872402,-619.13,0.00033424,21]
[356447425,1742461872411,-500.0,0.00033424,21]
[356447426,1742461872421,-4514.15,0.00033424,21]
[356447427,1742461872431,-500.0,0.00033424,21]
[356447428,1742461872441,-1875.2,0.00033424,21]
[356447429,1742461872450,-500.0,0.00033424,21]
[356447430,1742461872459,-500.0,0.00033424,21]
[356447431,1742461872469,-500.0,0.00033424,21]
[356447432,1742461872478,-500.0,0.00033424,21]
[356447433,1742461872487,-2083.42,0.00033424,21]
[356447434,1742461872497,-2511.45,0.00033424,21]
[356447435,1742461872506,-500.0,0.00033424,21]
[356447436,1742461872515,-500.0,0.00033424,21]
[356447437,1742461872525,-802.76,0.00033424,21]
[356447438,1742461872534,-500.0,0.00033424,21]
[356447439,1742461872543,-894.41,0.00033424,21]
[356447440,1742461872553,-43428.33,0.00033424,21]
[356447441,1742461872562,-789.64,0.00033424,21]
[356447442,1742461872572,-500.0,0.00033424,21]
[356447443,1742461872581,-1166.99,0.00033424,21]
[356447444,1742461872590,-2100.8,0.00033424,21]
[356447445,1742461872600,-500.0,0.00033424,21]
[356447446,1742461872609,-454.15183466,0.00033424,21]
[356447447,1742461872619,-500.0,0.00033424,21]
[356447448,1742461872629,-501.40231457,0.00033424,21]
[356447449,1742461872638,-500.0,0.00033424,21]
[356447450,1742461872647,-5569.78,0.00033424,21]
[356447451,1742461872657,-500.0,0.00033424,21]
[356447452,1742461872667,-500.0,0.00033424,21]
[356447453,1742461872676,-500.0,0.00033424,21]
[356447454,1742461872686,-500.0,0.00033424,21]
[356447455,1742461872695,-982.83,0.00033424,21]
[356447456,1742461872705,-1203.67,0.00033424,21]
[356447457,1742461872715,-500.0,0.00033424,21]
[356447458,1742461872729,-512.04,0.00033424,21]
[356447459,1742461872739,-500.0,0.00033424,21]
[356447460,1742461872749,-500.0,0.00033424,21]
[356447461,1742461872758,-500.0,0.00033424,21]
[356447462,1742461872769,-1674.92,0.00033424,21]
[356447463,1742461872779,-500.0,0.00033424,21]
[356447464,1742461872787,-1096.74,0.00033424,21]
[356447465,1742461872798,-500.0,0.00033424,21]
[356447466,1742461872807,-500.0,0.00033424,21]
[356447467,1742461872816,-500.0,0.00033424,21]
[356447468,1742461872826,-226.33775607,0.00033424,21]
[356447469,1742461872835,-916.01,0.00033424,21]
[356447470,1742461872844,-500.0,0.00033424,21]
[356447471,1742461872854,-500.0,0.00033424,21]
[356447472,1742461872863,-500.0,0.00033424,21]
[356447473,1742461872872,-500.0,0.00033424,21]
[356447474,1742461872881,-500.0,0.00033424,21]
[356447475,1742461872890,-500.0,0.00033424,21]
[356447476,1742461872900,-500.0,0.00033424,21]
[356447477,1742461872909,-596.47201374,0.00033424,21]
[356447478,1742461872918,-509.9,0.00033424,21]
[356447479,1742461872927,-628.04,0.00033424,21]
[356447480,1742461872936,-500.0,0.00033424,21]
[356447481,1742461872946,-595.41846624,0.00033424,12]
[356447482,1742461872956,-29745.15,0.00033424,21]
[356447483,1742461872966,-858.18,0.00033424,21]
[356447484,1742461872976,-500.0,0.00033424,21]
[356447485,1742461872987,-500.0,0.00033424,21]
[356447486,1742461872996,-500.0,0.00033424,21]
[356447487,1742461873006,-500.0,0.00033424,21]
[356447488,1742461873016,-895.78,0.00033424,21]
[356447489,1742461873026,-498.65668845,0.00033424,21]
[356447490,1742461873035,-500.0,0.00033424,21]
[356447491,1742461873045,-20512.22,0.00033424,21]
[356447492,1742461873055,-500.0,0.00033424,21]
[356447493,1742461873064,-713.19,0.00033424,21]
[356447494,1742461873074,-568.8,0.00033424,21]
[356447495,1742461873084,-500.0,0.00033424,21]
[356447496,1742461873094,-1685.96,0.00033424,21]
[356447497,1742461873103,-1429.05,0.00033424,21]
[356447498,1742461873171,-500.0,0.00033424,21]
[356447499,1742461873181,-500.0,0.00033424,5]
[356447500,1742461873190,-14238.95,0.00033424,21]
[356447501,1742461873200,-1361.5,0.00033424,21]
[356447502,1742461873209,-616.78,0.00033424,21]
[356447503,1742461873219,-500.0,0.00033424,21]
[356447504,1742461873229,-500.0,0.00033424,21]
[356447505,1742461873238,-1513.81,0.00033424,21]
[356447506,1742461873248,-813.05,0.00033424,21]
[356447507,1742461873257,-500.0,0.00033424,21]
[356447508,1742461873266,-500.0,0.00033424,21]
[356447509,1742461873276,-574.73011899,0.00033424,21]
[356447510,1742461873285,-500.0,0.00033424,21]
[356447511,1742461873295,-1329.65,0.00033424,21]
[356447512,1742461873304,-4411.74,0.00033424,21]
[356447513,1742461873314,-29088.67,0.00033424,21]
[356447514,1742461873323,-500.0,0.00033424,21]
[356447515,1742461873333,-500.0,0.00033424,21]
[356447516,1742461873343,-1213.41,0.00033424,21]
[356447517,1742461873352,-3019.51,0.00033424,21]
[356447518,1742461873361,-2345.85,0.00033424,21]
[356447519,1742461873371,-2144.99,0.00033424,21]
[356447520,1742461873380,-500.0,0.00033424,21]
[356447521,1742461873390,-595.54,0.00033424,21]
[356447522,1742461873399,-500.0,0.00033424,21]
[356447523,1742461873409,-858.07,0.00033424,21]
[356447524,1742461873418,-500.0,0.00033424,21]
[356447525,1742461873428,-500.0,0.00033424,21]
[356447526,1742461873437,-1338.74,0.00033424,21]
[356447527,1742461873447,-3639.61,0.00033424,21]
[356447528,1742461873456,-2885.85,0.00033424,21]
[356447529,1742461873465,-4768.03,0.00033424,21]
[356447530,1742461873474,-1145.34,0.00033424,21]
[356447531,1742461873483,-4146.59,0.00033424,21]
[356447532,1742461873493,-4197.92,0.00033424,21]
[356447533,1742461873503,-500.0,0.00033424,21]
[356447534,1742461873512,-500.0,0.00033424,21]
[356447535,1742461873522,-500.0,0.00033424,21]
[356447536,1742461873532,-1880.89,0.00033424,21]
[356447537,1742461873541,-500.0,0.00033424,21]
[356447538,1742461873552,-500.0,0.00033424,21]
[356447539,1742461873561,-2431.4,0.00033424,21]
[356447540,1742461873570,-854.97,0.00033424,21]
[356447541,1742461873579,-500.0,0.00033424,21]
[356447542,1742461873589,-1393.06,0.00033424,21]
[356447543,1742461873598,-500.0,0.00033424,21]
[356447544,1742461873608,-2356.21,0.00033424,21]
[356447545,1742461873617,-1379.3,0.00033424,21]
[356447546,1742461873626,-567.04110613,0.00033424,21]
[356447547,1742461873636,-500.0,0.00033424,21]
[356447548,1742461873646,-7598.17,0.00033424,21]
[356447549,1742461873656,-500.0,0.00033424,21]
[356447550,1742461873666,-500.0,0.00033424,21]
[356447551,1742461873676,-500.0,0.00033424,21]
[356447552,1742461873686,-500.0,0.00033424,21]
[356447553,1742461873696,-500.0,0.00033424,21]
[356447554,1742461873705,-500.0,0.00033424,21]
[356447555,1742461873715,-721.68,0.00033424,21]
[356447556,1742461873728,-5457.08,0.00033424,21]
[356447557,1742461873740,-2123.07,0.00033424,21]
[356447558,1742461873750,-500.0,0.00033424,21]
[356447559,1742461873759,-2230.49,0.00033424,21]
[356447560,1742461873770,-1123.42,0.00033424,21]
[356447561,1742461873779,-1336.49,0.00033424,21]
[356447562,1742461873788,-500.0,0.00033424,21]
[356447563,1742461873798,-500.0,0.00033424,21]
[356447564,1742461873807,-1332.88,0.00033424,21]
[356447565,1742461873819,-500.0,0.00033424,21]
[356447566,1742461873828,-500.0,0.00033424,21]
[356447567,1742461873838,-500.0,0.00033424,21]
[356447568,1742461873848,-2478.09,0.00033424,21]
[356447569,1742461873859,-500.0,0.00033424,21]
[356447570,1742461873869,-17110.58,0.00033424,21]
[356447571,1742461873878,-500.0,0.00033424,21]
[356447572,1742461873887,-521.37323114,0.00033424,21]
[356447573,1742461873897,-1435.35,0.00033424,21]
[356447574,1742461873907,-500.0,0.00033424,21]
[356447575,1742461873916,-500.0,0.00033424,21]
[356447576,1742461873926,-544.92,0.00033424,21]
[356447577,1742461873936,-1583.93,0.00033424,21]
[356447578,1742461873945,-500.0,0.00033424,21]
[356447579,1742461873955,-855.62,0.00033424,21]
[356447580,1742461873964,-1655.2,0.00033424,21]
[356447581,1742461873973,-2150.53,0.00033424,21]
[356447582,1742461873982,-4522.64,0.00033424,2]
[356447583,1742461873991,-34655.69,0.00033424,21]
[356447584,1742461874001,-365.21880669,0.00033424,21]
[356447585,1742461874011,-1805.88,0.00033424,21]
[356447586,1742461874022,-500.0,0.00033424,21]
[356447587,1742461874032,-500.0,0.00033424,21]
[356447588,1742461874041,-500.0,0.00033424,21]
[356447589,1742461874051,-500.0,0.00033424,21]
[356447590,1742461874061,-731.26,0.00033424,21]
[356447591,1742461874070,-2192.81,0.00033424,21]
[356447592,1742461874080,-500.0,0.00033424,21]
[356447593,1742461874090,-500.0,0.00033424,21]
[356447594,1742461874099,-500.0,0.00033424,21]
[356447595,1742461874109,-500.0,0.00033424,21]
[356447596,1742461874119,-500.0,0.00033424,21]
[356447597,1742461874128,-868.49,0.00033424,21]
[356447598,1742461874137,-550.51466319,0.00033424,21]
[356447599,1742461874147,-1390.84,0.00033424,21]
[356447600,1742461874156,-500.0,0.00033424,21]
[356447601,1742461874166,-500.0,0.00033424,21]
[356447602,1742461874175,-500.0,0.00033424,21]
[356447603,1742461874185,-2716.27,0.00033424,21]
[356447604,1742461874194,-303.59488347,0.00033424,21]
[356447605,1742461874205,-500.0,0.00033424,21]
[356447606,1742461874214,-500.0,0.00033424,21]
[356447607,1742461874224,-500.0,0.00033424,21]
[356447608,1742461874233,-952.77,0.00033424,21]
[356447609,1742461874243,-500.0,0.00033424,21]
[356447610,1742461874253,-500.0,0.00033424,21]
[356447611,1742461874263,-8455.4,0.00033424,21]
[356447612,1742461874273,-658.62,0.00033424,21]
[356447613,1742461874283,-500.0,0.00033424,21]
[356447614,1742461874294,-648.51,0.00033424,21]
[356447615,1742461874303,-1588.05,0.00033424,21]
[356447616,1742461874312,-500.0,0.00033424,21]
[356447617,1742461874321,-500.0,0.00033424,21]
[356447618,1742461874331,-500.0,0.00033424,21]
[356447619,1742461874340,-660.08,0.00033424,21]
[356447620,1742461874351,-500.0,0.00033424,21]
[356447621,1742461874361,-500.0,0.00033424,21]
[356447622,1742461874371,-521.67156837,0.00033424,21]
[356447623,1742461874382,-500.0,0.00033424,21]
[356447624,1742461874392,-721.56,0.00033424,21]
[356447625,1742461874401,-500.0,0.00033424,21]
[356447626,1742461874411,-500.0,0.00033424,21]
[356447627,1742461874420,-21878.22,0.00033424,21]
[356447628,1742461874430,-669.02,0.00033424,21]
[356447629,1742461874440,-1593.2,0.00033424,21]
[356447630,1742461874451,-301.88528936,0.00033424,7]
[356447631,1742461874461,-500.0,0.00033424,21]
[356447632,1742461874470,-500.0,0.00033424,21]
[356447633,1742461874480,-500.0,0.00033424,21]
[356447634,1742461874489,-3580.82,0.00033424,21]
[356447635,1742461874499,-500.0,0.00033424,21]
[356447636,1742461874509,-500.0,0.00033424,21]
[356447637,1742461874518,-2807.59,0.00033424,21]
[356447638,1742461874528,-500.0,0.00033424,21]
[356447639,1742461874537,-500.0,0.00033424,21]
[356447640,1742461874546,-6293.25,0.00033424,21]
[356447641,1742461874556,-500.0,0.00033424,21]
[356447642,1742461874565,-500.0,0.00033424,21]
[356447643,1742461874575,-500.0,0.00033424,21]
[356447644,1742461874586,-500.0,0.00033424,21]
[356447645,1742461874595,-500.0,0.00033424,21]
[356447646,1742461874605,-1364.21,0.00033424,21]
[356447647,1742461874615,-500.0,0.00033424,21]
[356447648,1742461874625,-500.0,0.00033424,21]
[356447649,1742461874635,-1215.72,0.00033424,21]
[356447650,1742461874645,-505.89,0.00033424,21]
[356447651,1742461874654,-500.0,0.00033424,21]
[356447652,1742461874663,-647.24,0.00033424,21]
[356447653,1742461874673,-1502.29,0.00033424,21]
[356447654,1742461874683,-744.02,0.00033424,21]
[356447655,1742461874693,-500.0,0.00033424,21]
[356447656,1742461874704,-500.0,0.00033424,21]
[356447657,1742461874714,-227387.66,0.00033424,7]
[356447658,1742461874728,-589.09,0.00033424,21]
[356447659,1742461874738,-2149.83,0.00033424,21]
[356447660,1742461874748,-854.03,0.00033424,21]
[356447661,1742461874757,-500.0,0.00033424,21]
[356447662,1742461874766,-3705.55,0.00033424,21]
[356447663,1742461874775,-14308.57,0.00033424,21]
[356447664,1742461874784,-2447.05,0.00033424,21]
[356447665,1742461874794,-500.0,0.00033424,21]
[356447666,1742461874805,-622.38180209,0.00033424,21]
[356447667,1742461874814,-500.0,0.00033424,21]
[356447668,1742461874825,-573.38,0.00033424,21]
[356447669,1742461874834,-500.0,0.00033424,21]
[356447670,1742461874845,-2318.39,0.00033424,21]
[356447671,1742461874854,-500.0,0.00033424,21]
[356447672,1742461874864,-544.54,0.00033424,21]
[356447673,1742461874874,-500.0,0.00033424,21]
[356447674,1742461874884,-500.0,0.00033424,21]
[356447675,1742461874893,-531.2,0.00033424,21]
[356447676,1742461874903,-718.94,0.00033424,21]
[356447677,1742461874912,-5997.31,0.00033424,21]
[356447678,1742461874922,-3595.45,0.00033424,21]
[356447679,1742461874933,-576.56423912,0.00033424,21]
[356447680,1742461874942,-500.0,0.00033424,21]
[356447681,1742461874953,-500.0,0.00033424,21]
[356447682,1742461874963,-500.0,0.00033424,21]
[356447683,1742461874972,-530.56807717,0.00033424,21]
[356447684,1742461874982,-500.0,0.00033424,21]
[356447685,1742461874991,-500.0,0.00033424,21]
[356447686,1742461875001,-1787.33,0.00033424,21]
[356447687,1742461875011,-500.0,0.00033424,21]
[356447688,1742461875020,-500.0,0.00033424,21]
[356447689,1742461875030,-634.95,0.00033424,21]
[356447690,1742461875039,-3679.44,0.00033424,21]
[356447691,1742461875050,-500.0,0.00033424,21]
[356447692,1742461875061,-500.0,0.00033424,21]
[356447693,1742461875070,-43618.43,0.00033424,21]
[356447694,1742461875080,-660.82,0.00033424,21]
[356447695,1742461875090,-19529.54,0.00033424,21]
[356447696,1742461875099,-500.0,0.00033424,21]
[356447697,1742461875108,-1279.17,0.00033424,21]
[356447698,1742461875118,-891.51,0.00033424,21]
[356447699,1742461875127,-544.25,0.00033424,21]
[356447700,1742461875136,-500.0,0.00033424,21]
[356447701,1742461875146,-500.0,0.00033424,21]
[356447702,1742461875155,-635.21,0.00033424,21]
[356447703,1742461875164,-795.1,0.00033424,21]
[356447704,1742461875173,-500.0,0.00033424,21]
[356447705,1742461875183,-500.0,0.00033424,21]
[356447706,1742461875192,-500.0,0.00033424,21]
[356447707,1742461875202,-13088.35,0.00033424,21]
[356447708,1742461875212,-1007.56,0.00033424,21]
[356447709,1742461875221,-500.0,0.00033424,21]
[356447710,1742461875231,-504.79,0.00033424,21]
[356447711,1742461875240,-500.0,0.00033424,21]
[356447712,1742461875250,-636.24,0.00033424,21]
[356447713,1742461875259,-500.0,0.00033424,21]
[356447714,1742461875269,-500.0,0.00033424,21]
[356447715,1742461875278,-880.55,0.00033424,21]
[356447716,1742461875289,-500.0,0.00033424,21]
[356447717,1742461875298,-12043.91,0.00033424,21]
[356447718,1742461875307,-500.0,0.00033424,21]
[356447719,1742461875317,-2711.16,0.00033424,21]
[356447720,1742461875326,-500.0,0.00033424,21]
[356447721,1742461875336,-1224.78,0.00033424,21]
[356447722,1742461875345,-500.0,0.00033424,21]
[356447723,1742461875354,-10705.08,0.00033424,21]
[356447724,1742461875364,-500.0,0.00033424,21]
[356447725,1742461875373,-500.0,0.00033424,21]
[356447726,1742461875384,-500.0,0.00033424,21]
[356447727,1742461875394,-500.0,0.00033424,21]
[356447728,1742461875403,-358.0712624,0.00033452,30]
[356447729,1742461875413,-358.0712624,0.00033452,30]
[356447730,1742461875424,-358.0712624,0.00033452,30]
[356447731,1742461875435,-358.0712624,0.00033452,30]
[356447732,1742461875446,-358.0712624,0.00033452,30]
[356447733,1742461875457,-358.0712624,0.00033452,30]
[356447734,1742461875468,-358.0712624,0.00033452,30]
[356447735,1742461875479,-358.0712624,0.00033452,30]
[356447736,1742461875491,-358.0712624,0.00033452,30]
[356447737,1742461875502,-358.0712624,0.00033452,30]
[356447738,1742461875513,-358.0712624,0.00033452,30]
[356447739,1742461875523,-358.0712624,0.00033452,30]
[356447740,1742461875532,-358.0712624,0.00033452,30]
[356447741,1742461875543,-358.0712624,0.00033452,30]
[356447742,1742461875553,-358.0712624,0.00033452,30]
[356447743,1742461875564,-358.0712624,0.00033452,30]
[356447744,1742461875575,-358.0712624,0.00033452,30]
[356447745,1742461875585,-358.0712624,0.00033452,30]
[356447746,1742461875595,-358.0712624,0.00033452,30]
[356447747,1742461875605,-358.0712624,0.00033452,30]
[356447748,1742461875615,-150.0,0.00033473,5]
[356447749,1742461875625,-150.0,0.00033473,5]
[356447750,1742461875634,-800.0,0.00033522,2]
[356447751,1742461875644,-800.0,0.00033528,2]
[356447752,1742461875654,-800.0,0.00033529,2]
[356447753,1742461875664,-800.0,0.00033542,2]
[356447754,1742461875675,-800.0,0.0003358,2]
[356447755,1742461875686,-800.0,0.00033586,2]
[356447756,1742461875697,-1224.41364444,0.00033597,10]
[356447757,1742461875707,-198.25298586,0.00033599,2]
[356447758,1742461875717,-800.0,0.00033611,2]
[356447759,1742461875731,-204.23029732,0.00033614,6]
[356447760,1742461875741,-961.71179581,0.00033637,2]
[356447761,1742461875751,-800.0,0.00033651,2]
[356447762,1742461875762,-800.0,0.00033663,2]
[356447763,1742461875772,-160.0,0.00033688,10]
[356447764,1742461875783,-800.0,0.00033688,2]
[356447765,1742461875793,-122920.24163135,0.00033689,14]
[356447766,1742461875804,-160.0,0.00033697,10]
[356447767,1742461875816,-500.0,0.00033698,21]
[356447768,1742461875827,-484.47064666,0.00033698,21]
[356447769,1742461875838,-500.0,0.00033698,21]
[356447770,1742461875848,-566.4353032,0.00033698,21]
[356447771,1742461875859,-500.0,0.00033698,21]
[356447772,1742461875869,-341.68130868,0.00033698,21]
[356447773,1742461875881,-536.44524631,0.00033698,21]
[356447774,1742461875891,-500.0,0.00033698,21]
[356447775,1742461875903,-500.0,0.00033698,21]
[356447776,1742461875913,-500.0,0.00033698,21]
[356447777,1742461875923,-500.0,0.00033698,21]
[356447778,1742461875933,-500.0,0.00033698,21]
[356447779,1742461875940,-500.0,0.00033698,21]
[356447780,1742461875948,-425.1361269,0.00033698,21]
[356447781,1742461875955,-500.0,0.00033698,21]
[356447782,1742461875963,-325.01471327,0.00033698,21]
[356447783,1742461875970,-500.0,0.00033698,21]
[356447784,1742461875980,-500.0,0.00033698,21]
[356447785,1742461875989,-500.0,0.00033698,21]
[356447786,1742461875997,-500.0,0.00033698,21]
[356447787,1742461876005,-500.0,0.00033698,21]
[356447788,1742461876012,-500.0,0.00033698,21]
[356447789,1742461876019,-500.0,0.00033698,21]
[356447790,1742461876028,-695.15,0.00033698,21]
[356447791,1742461876036,-500.0,0.00033698,21]
[356447792,1742461876044,-500.0,0.00033698,21]
[356447793,1742461876052,-500.0,0.00033698,21]
[356447794,1742461876060,-500.0,0.00033698,21]
[356447795,1742461876070,-1428.27,0.00033698,21]
[356447796,1742461876077,-612.39694871,0.00033698,21]
[356447797,1742461876084,-516.10800583,0.00033698,21]
[356447798,1742461876093,-500.0,0.00033698,21]
[356447799,1742461876105,-500.0,0.00033698,21]
[356447800,1742461876113,-500.0,0.00033698,21]
[356447801,1742461876120,-500.0,0.00033698,21]
[356447802,1742461876127,-500.0,0.00033698,21]
[356447803,1742461876136,-516.44187278,0.00033698,21]
[356447804,1742461876144,-500.0,0.00033698,21]
[356447805,1742461876152,-500.0,0.00033698,21]
[356447806,1742461876159,-634.53,0.00033698,21]
[356447807,1742461876167,-198.6216508,0.00033698,21]
[356447808,1742461876175,-500.0,0.00033698,21]
[356447809,1742461876183,-1404.91,0.00033698,21]
[356447810,1742461876190,-500.0,0.00033698,21]
[356447811,1742461876199,-500.0,0.00033698,21]
[356447812,1742461876208,-566.83,0.00033698,21]
[356447813,1742461876217,-500.0,0.00033698,21]
[356447814,1742461876225,-1610.07,0.00033698,21]
[356447815,1742461876233,-2103.61,0.00033698,21]
[356447816,1742461876241,-500.0,0.00033698,21]
[356447817,1742461876249,-500.0,0.00033698,21]
[356447818,1742461876256,-500.0,0.00033698,21]
[356447819,1742461876263,-1432.87,0.00033698,21]
[356447820,1742461876271,-1129.64,0.00033698,21]
[356447821,1742461876279,-500.0,0.00033698,21]
[356447822,1742461876287,-1387.5,0.00033698,21]
[356447823,1742461876296,-164.14537638,0.00033698,21]
[356447824,1742461876306,-500.0,0.00033698,21]
[356447825,1742461876314,-500.0,0.00033698,21]
[356447826,1742461876324,-500.0,0.00033698,21]
[356447827,1742461876334,-500.0,0.00033698,21]
[356447828,1742461876345,-500.0,0.00033698,21]
[356447829,1742461876355,-500.0,0.00033698,21]
[356447830,1742461876365,-500.0,0.00033698,21]
[356447831,1742461876375,-910.96,0.00033698,21]
[356447832,1742461876386,-500.0,0.00033698,21]
[356447833,1742461876396,-500.0,0.00033698,21]
[356447834,1742461876406,-500.0,0.00033698,21]
[356447835,1742461876417,-500.0,0.00033698,21]
[356447836,1742461876426,-500.0,0.00033698,21]
[356447837,1742461876437,-500.0,0.00033698,21]
[356447838,1742461876447,-500.0,0.00033698,21]
[356447839,1742461876458,-500.0,0.00033698,21]
[356447840,1742461876469,-619.69,0.00033698,21]
[356447841,1742461876480,-500.0,0.00033698,21]
[356447842,1742461876491,-537.48427232,0.00033698,21]
[356447843,1742461876501,-774.65,0.00033698,21]
[356447844,1742461876511,-500.0,0.00033698,21]
[356447845,1742461876522,-500.0,0.00033698,21]
[356447846,1742461876531,-500.0,0.00033698,21]
[356447847,1742461876541,-500.0,0.00033698,120]
[356447848,1742461876551,-624.49952578,0.00033698,21]
[356447849,1742461876561,-500.0,0.00033698,21]
[356447850,1742461876571,-500.0,0.00033698,21]
[356447851,1742461876581,-500.0,0.00033698,21]
[356447852,1742461876590,-500.0,0.00033698,21]
[356447853,1742461876599,-500.0,0.00033698,21]
[356447854,1742461876610,-500.0,0.00033698,21]
[356447855,1742461876621,-646.82,0.00033698,21]
[356447856,1742461876631,-500.0,0.00033698,21]
[356447857,1742461876640,-500.0,0.00033698,21]
[356447858,1742461876650,-668.27,0.00033698,21]
[356447859,1742461876660,-2316.69,0.00033698,21]
[356447860,1742461876670,-500.0,0.00033698,21]
[356447861,1742461876680,-500.0,0.00033698,21]
[356447862,1742461876690,-990.92,0.00033698,21]
[356447863,1742461876701,-500.0,0.00033698,21]
[356447864,1742461876712,-1090.13,0.00033698,21]
[356447865,1742461876726,-500.0,0.00033698,21]
[356447866,1742461876737,-542.45470458,0.00033698,21]
[356447867,1742461876746,-1362.39,0.00033698,21]
[356447868,1742461876760,-500.0,0.00033698,21]
[356447869,1742461876770,-1927.43,0.00033698,21]
[356447870,1742461876781,-500.0,0.00033698,21]
[356447871,1742461876791,-500.0,0.00033698,7]
[356447872,1742461876801,-500.0,0.00033698,21]
[356447873,1742461876812,-500.0,0.00033698,21]
[356447874,1742461876822,-500.0,0.00033698,21]
[356447875,1742461876832,-500.0,0.00033698,21]
[356447876,1742461876843,-780.4,0.00033698,21]
[356447877,1742461876852,-500.0,0.00033698,21]
[356447878,1742461876862,-500.0,0.00033698,21]
[356447879,1742461876871,-500.0,0.00033698,21]
[356447880,1742461876881,-500.0,0.00033698,21]
[356447881,1742461876891,-500.0,0.00033698,21]
[356447882,1742461876902,-377.36287449,0.00033698,21]
[356447883,1742461876911,-500.0,0.00033698,21]
[356447884,1742461876921,-500.0,0.00033698,21]
[356447885,1742461876931,-500.0,0.00033698,21]
[356447886,1742461876941,-500.0,0.00033698,21]
[356447887,1742461876952,-1563.76,0.00033698,21]
[356447888,1742461876962,-500.0,0.00033698,21]
[356447889,1742461876971,-565.06615943,0.00033698,21]
[356447890,1742461876981,-686.6,0.00033698,21]
[356447891,1742461876991,-500.0,0.00033698,2]
[356447892,1742461877001,-500.0,0.00033698,21]
[356447893,1742461877011,-500.0,0.00033698,21]
[356447894,1742461877021,-500.0,0.00033698,21]
[356447895,1742461877031,-500.0,0.00033698,21]
[356447896,1742461877041,-500.0,0.00033698,21]
[356447897,1742461877052,-500.0,0.00033698,21]
[356447898,1742461877061,-500.0,0.00033698,21]
[356447899,1742461877072,-500.0,0.00033698,21]
[356447900,1742461877082,-1655.01,0.00033698,21]